Cogmind - Beta 16.1 @@@ ROGUE MODE // 2026.02.28 @ 22:49:16 Player: Zable Result: Self-destructed Performance ------------- Evolutions (0) 0 Regions Visited (4) 800 Robots Destroyed (12) 60 Value Destroyed (286) 286 Prototype IDs (0) 0 Alien Tech Used (0) 0 Bonus (51) 51 TOTAL SCORE: 1197 Bonus ------- Follower Combat Kills 51 Cogmind --------- Core Integrity 9/250 Matter 300/300 Energy 100/100 System Corruption 0% Temperature Warning (348) Movement Walking (120) Location -7/Recycling Parts ------- > --- POWER (1) -------- (None) > --- PROPULSION (2) --- Carbon-fiber Leg > --- UTILITY (2) ------ Small Storage Unit Signal Interpreter > --- WEAPON (2) ------- Particle Gun > --- INVENTORY (8) ---- Light Nuclear Core Wheel Compact Wheel High-capacity Matter Pod (200) Seismic Detector Assault Rifle Light Cannon Grenade Launcher Peak State ------------ > --- POWER ------------ Light Angular Momentum Engine > --- PROPULSION ------- Carbon-fiber Leg Carbon-fiber Leg > --- UTILITY ---------- Small Storage Unit Signal Interpreter > --- WEAPON ----------- Particle Gun Beamcaster > --- INVENTORY -------- Light Nuclear Core Wheel Compact Wheel High-capacity Matter Pod Seismic Detector Assault Rifle Light Cannon Grenade Launcher [Rating: 21] Favorites ----------- Power Light Angular Momentum Engine Engine Light Angular Momentum Engine Propulsion Carbon-fiber Leg Leg Carbon-fiber Leg Utility Small Storage Unit Device Seismic Detector Storage Small Storage Unit Processor Signal Interpreter Weapon Light Cannon Energy Gun Beamcaster Ballistic Cannon Light Cannon Build | -11 -10 -10 -10 -7 ------- Run | Yrd Mat Min Sub Rec Slots Evolved . | . . . . . Power . | . . . . . Propulsion . | . . . . . Utility . | . . . . . Weapon . | . . . . . Parts Attached 10 | 1 2 6 . 1 Power 1 | . . 1 . . Engine 1 | . . 1 . . Core . | . . . . . Reactor . | . . . . . Propulsion 3 | . . 3 . . Treads . | . . . . . Leg 3 | . . 3 . . Wheel . | . . . . . Hover . | . . . . . Flight . | . . . . . Utility 2 | 1 . 1 . . Device 1 | 1 . . . . Storage . | . . . . . Processor 1 | . . 1 . . Hackware . | . . . . . Protection . | . . . . . Artifact . | . . . . . Weapon 4 | . 2 1 . 1 Energy Gun 2 | . . 1 . 1 Energy Cannon . | . . . . . Ballistic Gun . | . . . . . Ballistic Cannon 2 | . 2 . . . Launcher . | . . . . . Special Weapon . | . . . . . Impact Weapon . | . . . . . Slashing Weapon . | . . . . . Piercing Weapon . | . . . . . Special Melee Weapon . | . . . . . Unidentified Prototypes . | . . . . . Parts Lost 4 | . . . . 4 Power 1 | . . . . 1 Propulsion 1 | . . . . 1 Utility . | . . . . . Weapon 2 | . . . . 2 Highest Loss Streak 4 | . . . . 4 To Critical Strikes . | . . . . . Average Backups 7 | 6 6 8 8 8 Power 1 | 1 1 1 1 1 Propulsion 2 | 4 4 2 2 2 Utility 1 | . . 1 2 2 Weapon 2 | 1 1 3 3 3 Tool/Special . | . . . . . Unused Backups 11 | . . 7 . 4 Power 3 | . . 2 . 1 Propulsion 4 | . . 4 . . Utility 2 | . . 1 . 1 Weapon 2 | . . . . 2 Tool/Special . | . . . . . Average Slot Usage (%) 99 | . 100 100 100 95 Engine 14 | . 14 14 14 14 Leg 27 | . 28 28 28 25 Device 8 | . 14 13 . . Storage 14 | . 14 14 14 14 Processor 5 | . . . 14 14 Energy Gun 12 | . 24 8 14 18 Ballistic Cannon 15 | . 3 19 14 7 Peak Build Rating 21 | 7 7 20 20 21 Average Rating 15 | 6 7 14 20 19 On Entrance 12 | 6 7 7 20 20 Avg Prop Armor Cover (%) . | . . . . . Naked Turns . | . . . . . Heaviest Build 23 | 12 15 23 22 22 Greatest Support 30 | 20 20 30 30 30 Greatest Overweight (x) . | . . . . . Average Overweight (x) . | . . . . . Largest Inventory Capacity 8 | 8 8 8 8 8 Average Capacity 8 | 8 8 8 8 8 Most Carried 8 | 6 8 8 8 8 Average Carried 7 | 6 6 7 8 8 Final Capacity 8 | 8 8 8 8 8 Final Carried 8 | 6 8 8 8 8 Class Distribution -------------------- 62% | Scavenger-Mutant 37% | Mutant Dominant Class ---------------- Mutant | -10/Materials Scavenger-Mutant | -10/Mines Scavenger-Mutant | -10/Subcaves Scavenger-Mutant | -7/Recycling Resources | -11 -10 -10 -10 -7 ----------- Run | Yrd Mat Min Sub Rec Matter Collected 522 | 200 10 265 47 . Remotely . | . . . . . Salvage Created 324 | 43 44 171 9 57 Parts 28 | 5 3 16 3 1 Haulers Intercepted . | . . . . . Recyclers Shooed . | . . . . . Parts Field Recycled . | . . . . . Retrieved Matter . | . . . . . Parts Self-Destructed 10 | . . . 10 . Prevented . | . . . . . Parts Restored . | . . . . . Kills | -11 -10 -10 -10 -7 ------- Run | Yrd Mat Min Sub Rec Combat Hostiles Destroyed 8 | . 1 5 1 1 Guns 3 | . 1 1 . 1 Cannons 5 | . . 4 1 . Classes Destroyed 5 | 1 1 2 . 1 Worker 2 | . . 2 . . Tunneler 2 | 2 . . . . Swarmer 2 | . . 1 1 . Grunt 5 | . 1 4 . . Sentry 1 | . . . . 1 Best Kill Streak 2 | 1 1 2 1 1 Combat Bots Only 2 | . 1 2 1 1 Max Kills in Single Turn 1 | 1 1 1 1 1 Gunslinging . | . . . . . Exploded . | . . . . . Melee . | . . . . . Uniques/NPCs Destroyed . | . . . . . Combat | -11 -10 -10 -10 -7 -------- Run | Yrd Mat Min Sub Rec Hostile Shots Fired 148 | . 4 13 41 90 Missed 48 | . 1 3 14 30 Hits 100 | . 3 10 27 60 Projectile 100 | . 3 10 27 60 Damage Taken 813 | . 32 128 205 448 Core 241 | . 12 35 34 160 Absorbed by Shields . | . . . . . Core Remaining (%) 100 | 100 . . . . Volleys Fired 40 | 5 5 15 9 6 Largest 2 | 2 2 2 2 2 Hottest 140 | 90 90 105 105 140 Shots Fired 78 | 10 10 30 18 10 Gun 45 | 10 10 6 9 10 Cannon 33 | . . 24 9 . Launcher . | . . . . . Special . | . . . . . Kinetic 33 | . . 24 9 . Thermal 45 | 10 10 6 9 10 Explosive . | . . . . . Electromagnetic . | . . . . . Robot Hit Streak 7 | 4 1 6 3 7 Robot Miss Streak 6 | 3 6 1 3 2 Penetration Max . | . . . . . Secondary Targets . | . . . . . Shots Hit Robots 40 | 4 3 19 6 8 Core Hits 18 | 2 2 8 2 4 Critical Kills . | . . . . . Critical Parts Destroyed . | . . . . . Critical Strikes 2 | 1 . . 1 . Burn 1 | 1 . . . . Blast 1 | . . . 1 . Melee Attacks . | . . . . . Impact . | . . . . . Slashing . | . . . . . Piercing . | . . . . . Sneak Attacks . | . . . . . Combat Hostiles . | . . . . . Follow-up Attacks . | . . . . . Damage Inflicted 686 | 58 33 343 117 135 Guns 310 | 58 33 42 42 135 Cannons 376 | . . 301 75 . Explosions . | . . . . . Melee . | . . . . . Ramming . | . . . . . Kinetic 376 | . . 301 75 . Thermal 310 | 58 33 42 42 135 Explosive . | . . . . . Electromagnetic . | . . . . . Impact . | . . . . . Slashing . | . . . . . Piercing . | . . . . . Highest Corruption . | . . . . . Average Corruption . | . . . . . Corruption Purged . | . . . . . Corruption Blocked . | . . . . . Overload Shots . | . . . . . Overflow Damage 5 | . . 5 . . Projectiles 5 | . . 5 . . Explosions . | . . . . . Melee . | . . . . . Knockbacks 4 | . . 3 1 . Impact . | . . . . . Kinetic 4 | . . 3 1 . Secondary . | . . . . . Self-Inflicted Damage . | . . . . . Shots . | . . . . . Rammed . | . . . . . Targets Rammed . | . . . . . Kicked . | . . . . . Crushed . | . . . . . Highest Temperature 348 | 60 72 102 27 348 Average Temperature 51 | 28 32 40 18 140 Received Heat Transfer 330 | . 18 60 120 132 Siege Activations . | . . . . . Martial Activations . | . . . . . Shielding Activations . | . . . . . Robots Disrupted . | . . . . . Combat Hostiles . | . . . . . Robots Corrupted . | . . . . . Combat Hostiles . | . . . . . Parts Fried . | . . . . . Impact Corruptions . | . . . . . Robots Melted . | . . . . . Combat Hostiles . | . . . . . Parts Melted 1 | . . . . 1 Heat Transferred 766 | 247 75 74 74 296 Parts Sabotaged . | . . . . . Parts Stolen . | . . . . . Parts Stripped . | . . . . . Power Chain Reactions . | . . . . . Alert | -11 -10 -10 -10 -7 ------- Run | Yrd Mat Min Sub Rec Maximum Alert Level . | . . . . . Low Security (%) 100 | 100 100 100 . 100 Level 1 . | . . . . . Level 2 . | . . . . . Level 3 . | . . . . . Level 4 . | . . . . . Level 5 . | . . . . . High Security . | . . . . . Max Security . | . . . . . Peak Influence 61 | 5 30 61 . 51 Initial 51 | . . 5 . 51 Average 8 | 1 5 9 . 17 Influence Increases 375 | 10 45 149 151 20 Destroy 0b10 Robot/C 260 | . 20 100 120 20 Destroy 0b10 Robot/NC 20 | 10 . 10 . . Destroy Leader 30 | . 10 20 . . Allied During Kill 35 | . . 19 16 . Lose Combat Pursuer 30 | . 15 . 15 . Influence Decreases 375 | 10 30 164 44 127 Entered New Map 66 | . . 10 . 56 Time Decay 228 | 10 30 154 24 10 Lost Part 21 | . . . . 21 Lost Ally 60 | . . . 20 40 Squads Dispatched 1 | . 1 . . . Investigation . | . . . . . Extermination . | . . . . . Reinforcement 1 | . 1 . . . Assault . | . . . . . Garrison . | . . . . . Intercept . | . . . . . Searches Triggered . | . . . . . Construction Impeded . | . . . . . Haulers Reinforced . | . . . . . Active Scanning Responses . | . . . . . Cargo Convoy Interrupts . | . . . . . Stealth | -11 -10 -10 -10 -7 --------- Run | Yrd Mat Min Sub Rec Distress Signals 1 | . 1 . . . Communications Jammed . | . . . . . Distress Signals . | . . . . . Times Spotted 21 | . 4 7 8 2 Peak Tracking Total 6 | . 3 2 6 2 Tactical Retreats 2 | . 1 . 1 . Traps | -11 -10 -10 -10 -7 ------- Run | Yrd Mat Min Sub Rec Traps Triggered . | . . . . . Indirectly . | . . . . . Trap Hack Attempts . | . . . . . Triggered . | . . . . . Disarmed . | . . . . . Reprogrammed . | . . . . . Reused . | . . . . . Traps Extracted . | . . . . . Installed . | . . . . . Triggered . | . . . . . Machines | -11 -10 -10 -10 -7 ---------- Run | Yrd Mat Min Sub Rec Machines Disabled 1 | . . . 1 . Max in Single Turn 1 | . . . 1 . Machines Repaired . | . . . . . Machines Dismantled . | . . . . . Machines Sabotaged . | . . . . . Overloaded Fab Kills . | . . . . . Hacking | -11 -10 -10 -10 -7 --------- Run | Yrd Mat Min Sub Rec Machines Accessed 1 | . 1 . . . Terminals 1 | . 1 . . . Fabricators . | . . . . . Repair Stations . | . . . . . Recycling Units . | . . . . . Scanalyzers . | . . . . . Garrison Access . | . . . . . Total Hacks 2 | . 2 . . . Successful 1 | . 1 . . . Failed 1 | . 1 . . . Catastrophic . | . . . . . Database Lockouts . | . . . . . Manual 4 | . 4 . . . Terminals 2 | . 2 . . . Fabricators . | . . . . . Repair Stations . | . . . . . Recycling Units . | . . . . . Scanalyzers . | . . . . . Garrison Access . | . . . . . Terminal Hacks . | . . . . . Fabricator Hacks . | . . . . . Repair Station Hacks . | . . . . . Recycling Unit Hacks . | . . . . . Scanalyzer . | . . . . . Garrison Access Hacks . | . . . . . Unauthorized Hacks 1 | . 1 . . . Terminals 1 | . 1 . . . Botnet 1 | . 1 . . . Fabricators . | . . . . . Repair Stations . | . . . . . Recycling Units . | . . . . . Scanalyzers . | . . . . . Garrison Access . | . . . . . Data Cores Recovered . | . . . . . Used . | . . . . . Hacking Detections 1 | . 1 . . . Full Trace Events . | . . . . . Feedback Events . | . . . . . Feedback Blocked . | . . . . . Robot Schematics Acquired . | . . . . . Robots Built . | . . . . . Authchips . | . . . . . Time . | . . . . . Total Robot Build Rating . | . . . . . Part Schematics Acquired . | . . . . . Parts Built . | . . . . . Authchips . | . . . . . Time . | . . . . . Total Part Build Rating . | . . . . . Part Studies Acquired . | . . . . . Parts Repaired . | . . . . . Time . | . . . . . Parts Recycled . | . . . . . Recycled Matter . | . . . . . Retrieved Matter . | . . . . . Retrieved Components . | . . . . . Parts Scanalyzed . | . . . . . Part Schematics Acquired . | . . . . . Parts Damaged . | . . . . . Bothacking | -11 -10 -10 -10 -7 ------------ Run | Yrd Mat Min Sub Rec Used RIF Installer . | . . . . . Robots Hacked . | . . . . . Non-combat . | . . . . . Combat . | . . . . . Robot Hacks Applied . | . . . . . Relay Couplers Released . | . . . . . Fabnet Peak Effective % . | . . . . . Robots Rewired . | . . . . . Allies Hacked . | . . . . . Hacks Repelled . | . . . . . Allies | -11 -10 -10 -10 -7 -------- Run | Yrd Mat Min Sub Rec Total Allies 3 | . . 3 . . Largest Group 3 | . . 3 3 2 Highest-Rated Group 40 | . . 40 40 24 Highest-Rated Ally 16 | . . 16 16 16 Total Orders . | . . . . . Ally Attacks 33 | . . 1 29 3 Total Damage 342 | . . 11 321 10 Kills 6 | . . . 6 . Allies Corrupted . | . . . . . Allies Melted . | . . . . . Intel | -11 -10 -10 -10 -7 ------- Run | Yrd Mat Min Sub Rec Active Infowar (turns) 963 | 8 222 733 . . Seismic 963 | 8 222 733 . . Robot Analysis Total . | . . . . . Derelict Logs Recovered 4 | . . 3 1 . Drone Launches . | . . . . . Drone Recoveries . | . . . . . Exploration | -11 -10 -10 -10 -7 ------------- Run | Yrd Mat Min Sub Rec Turns Passed 1632 | 69 222 784 504 53 Spaces Moved 1159 | 41 158 581 359 20 Core . | . . . . . Treads . | . . . . . Legs 1159 | 41 158 581 359 20 Wheels . | . . . . . Hover . | . . . . . Flight . | . . . . . Fastest Speed 120 | 120 120 120 120 120 Average Speed 120 | 120 120 120 120 120 Slowest Speed 120 | 120 120 120 120 120 Overloaded Moves . | . . . . . Propulsion Burnouts . | . . . . . Robots Hopped . | . . . . . Potential Cave-ins . | . . . . . Cave-ins Triggered . | . . . . . Exploration Rate (%) 34 | 3 34 98 30 7 Regions Visited 4 Branch Regions 3 Pre-discovered Areas 2 | . . 2 . . Known Exits Taken 2 | . . 1 1 . Unknown Exits Taken 2 | 1 1 . . . Scrap Searched 1 | . . 1 . . Spaces Dug . | . . . . . Terrain Destroyed . | . . . . . Melee . | . . . . . Projectile . | . . . . . AOE . | . . . . . Terrain Rammed . | . . . . . Walls Destroyed . | . . . . . Machines Disabled . | . . . . . Actions | -11 -10 -10 -10 -7 --------- Run | Yrd Mat Min Sub Rec Total 1323 | 50 180 641 414 38 Wait 100 | 4 10 29 46 11 Move 1155 | 40 157 580 358 20 Hop . | . . . . . Pick Up 8 | . 4 4 . . Fast Attach 2 | 1 . . . 1 Attach 1 | . . 1 . . Detach . | . . . . . Swap 7 | . 2 5 . . Drop 9 | . 2 7 . . Fire 40 | 5 5 15 9 6 Melee . | . . . . . Ram . | . . . . . Kick . | . . . . . Crush . | . . . . . Escape Stasis . | . . . . . Rewire 1 | . . . 1 . Trap . | . . . . . Miscellaneous . | . . . . . Route ------- -11/Scrapyard -10/Materials (discovered 2 exits: [*Min x2]) -10/Mines (discovered 3 exits: *Mat x2 / *Sub) -10/Subcaves (discovered 2 exits: [*Mat] / *Rec) -7/Recycling History --------- Turn | Location | Event 1 | -11/Scrapyard | Discovered new exit (range 2) 70 | -11/Scrapyard | Entered Materials 100 | -10/Materials | Discovered new exit (range 11) 239 | -10/Materials | Discovered new exit (range 14) 292 | -10/Materials | Entered Mines 309 | -10/Mines | Build established: Mutant 346 | -10/Mines | Joined a pair of Derelicts in attacking an 0b10 outpost 398 | -10/Mines | Discovered new exit (range 11) 407 | -10/Mines | Learned Materials emergency access door positions 425 | -10/Mines | Assisted by bots powering up and referring to "LRC-V3" 514 | -10/Mines | Discovered new exit (range 11) 652 | -10/Mines | Discovered new exit (range 12) 674 | -10/Mines | Learned location of Storage (-7) 924 | -10/Mines | Build established: Scavenger-Mutant 1036 | -10/Mines | Identified exit to Materials 1072 | -10/Mines | Identified exit to Subcaves 1076 | -10/Mines | Entered Subcaves 1076 | -10/Subcaves | Accompanied by 3 allies 1077 | -10/Subcaves | Approached by a straggling Scientist 1181 | -10/Subcaves | Discovered new exit (range 8) 1225 | -10/Subcaves | Learned Materials emergency access door positions 1399 | -10/Subcaves | Curiously followed by a Cobbler waking with a query about "LVR3C" 1498 | -10/Subcaves | Shifting Twisted Machinery released Sub. Laser 1509 | -10/Subcaves | Shifting Twisted Machinery released Sub. Monowheel 1529 | -10/Subcaves | Discovered new exit (range 12) 1564 | -10/Subcaves | Identified exit to Recycling 1580 | -10/Subcaves | Entered Recycling 1580 | -7/Recycling | Accompanied by 2 allies 1605 | -7/Recycling | Core integrity fell below 50% 1629 | -7/Recycling | Core integrity fell below 20% 1633 | -7/Recycling | Self-destructed Last Messages --------------- 01555_ Acquired 14 matter. 01557_ Subatomizers dissect the Autobeam. 01561_ RT-U19(O) collects matter. 01561_ Acquired 14 matter. 01564_ EXIT=IDENTIFIED: RECYCLING 01564_ RT-U19(O) collects matter. LOCATION=RECYCLING GOAL=ESCAPE 01589_ Y-54 Guardian springs to life. 01594_ Trooper 1a destroyed. 01597_ Mercenary 1a destroyed. 01601_ Lgt. Cannon destroyed. 01605_ Acquired Particle Gun. 01623_ Carbon-fiber Leg destroyed. 01625_ R-06 Scavenger collects Aluminum Leg. 01626_ Flak Gun melted. 01626_ Y-54 Guardian destroyed. 01628_ Beamcaster destroyed. 01630_ R-06 Scavenger collects Imp. Deuterium Engine. 01631_ Lgt. Angular Momentum Engine destroyed. Map ----- +----------------------------------------------------+ | ?????????????????????????????????????????????????? | | ?????????????????????????????????????????????????? | | ?????????????????????????????????????????????????? | | ?????????????????????????????????????????????????? | | ?????????????????????????????????????????????????? | | ?????????????????????????????????????????????????? | | ?????????????????????????????????????????????????? | | ?????????????????????????????????????????????????? | | ???????????????[ ????????????????????????????????? | | ???????????????# ???????????????????????????????? | | ???????????????# ???????????????????????????????? | | ??????????????? ???????????????????????????????? | | ???????????????# ???????????????????????????????? | | ???????????????# ???????????????????????????????? | | ???????????????# ??????????????????????????????? | | ??????????????## ??????????????????????????????? | | ??????????????# ??????????????????????????????? | | ???????????????# ??????????????????????????????? | | ???????????????# ??#####???????????????????????? | | ??????????????## ###"""#???????????????????????? | | ???????##"Y"### ##"Y"######??????????????????? | | ????? % #??????????????????? | | ???? T =%r #??????????????????? | | ????? ! % #??????????????????? | | ?????#+######## ####Y#######?????????????????? | | ??????????????#######?# r@ #?????????????????? | | ??????????????????????#""" #?????????????????? | | ??????????????????????#""" #?????????????????? | | ??????????????????????#""" #?????????????????? | | ??????????????????????# #?????????????????? | | ??????????????????????#""" #?????????????????? | | ??????????????????????#""" #?????????????????? | | ?????????????????????????? #?????????????????? | | ?????????????????????????? #?????????????????? | | ?????????????????????????? "####?????????????????? | | ????????????????????????????#????????????????????? | | ?????????????????????????????????????????????????? | | ?????????????????????????????????????????????????? | | | | | | | | | | | | | | | | | | | | | | | | | +----------------------------------------------------+ Best States ------------- Heat Dissipation 25 Energy Generation 18 Energy Capacity 150 Matter Stores 300 Matter Capacity 300 Sight Range 16 Terrain Scan Density 10 Evasion (%) 55 Item Schematics ----------------- None Robot Schematics ------------------ None Fabricated ------------ Nothing Repaired ---------- Nothing Studied --------- None Alien Tech Used ----------------- None Achievements -------------- None Challenges ------------ None Game ------ Seed HugeAssaultPrototype Manual? 0 Play Time 00:11:03 Cumulative 41.2 hours Start 2026.02.28 @ 22:38:47 End 2026.02.28 @ 22:49:16 Sessions 1 Manual Loads 0 Difficulty Rogue Special Mode None Game No. 57 Rogue 32 Adventurer 25 Explorer 0 Win Type - Total 0 Types 0/0/0/0/0/0/0/0/0/0 Lore% 26 Gallery% 33 Achievement% 27 Wizard Run 0 Options --------- Layout 0 ASCII 0 Keyboard 1 Movement Numpad Keybinds 0 Fullscreen 1 Font 24/Smallcaps Map View 183x50 Zoom Use 0% Tactical HUD 1 Map Filters NONE Filters NONE Steam 1 RUN: 2663f993-b302-4c65-9bf0-8224bb3c3a7b